[Event "Chess sin Fronteras-IM 2025"]
[Site "San Jose"]
[Date "2025.02.14"]
[Round "1.2"]
[White "Deng, Henry"]
[Black "Paredes Lagos, Anthony Javier"]
[Result "1-0"]
[Annotator "RC"]
[ECO "C50"]
[WhiteElo "2321"]
[BlackElo "2338"]
[PlyCount "51"]
[EventDate "2025.02.13"]
[EventType "tourn"]
[EventCountry "USA"]
[SourceTitle "playchess.com"]
[Source "ChessBase"]
[SourceQuality "1"]
[TimeControl "5400+30"]

1. e4 {[%emt 0:00:03]} e5 {[%emt 0:00:27]} 2. Nf3 {[%emt 0:00:33]} Nc6 {[%emt 0:00:06]} 3. Bc4 {[%emt 0:01:03]} Bc5 {[%emt 0:00:05]} 4. Nc3 {[%emt 0:00:34]} Nf6 {[%emt 0:01:49]} 5. d3 {[%emt 0:00:28]} h6 {[%emt 0:01:08]} 6. a3 {[%emt 0:00:26]} a6 {[%emt 0:00:18]} 7. Be3 {[%emt 0:00:29]} d6 {[%emt 0:02:30]} 8. O-O {[%emt 0:01:04]} O-O {[%emt 0:00:44]} 9. Bxc5 {[%emt 0:01:52]} dxc5 {[%emt 0:00:05]} 10. Nd5 {[%emt 0:00:27]} Bg4 {[%emt 0:09:56]} 11. Ne3 {[%emt 0:02:58]} Bh5 {[%emt 0:04:33]} 12. h3 {[%emt 0:03:18]} Bxf3 {[%emt 0:00:24]} 13. Qxf3 {[%emt 0:00:19]} Nd4 {[%emt 0:00:16]} 14. Qd1 {[%emt 0:00:21]} g6 {[%emt 0:04:54]} 15. g3 {[%emt 0:05:01]} Nh5 {[%emt 0:07:22]} 16. Ng4 {[%emt 0:13:56]} Qg5 {[%emt 0:00:05]} 17. h4 {[%emt 0:01:44]} Qe7 {[%emt 0:00:03]} 18. c3 {[%emt 0:03:47]} Nc6 {[%emt 0:00:03]} 19. Nxh6+ {[%emt 0:01:10]} Kg7 {[%emt 0:00:02]} 20. Qxh5 {[%emt 0:07:16]} gxh5 {[%emt 0:00:03]} 21. Nf5+ {[%emt 0:00:05]} Kg6 {[%emt 0:00:17]} 22. Nxe7+ {[%emt 0:00:19]} Nxe7 {[%emt 0:00:04]} 23. f4 {[%emt 0:08:27]} Rad8 {[%emt 0:02:43]} 24. a4 {[%emt 0:11:13]} exf4 {[%emt 0:01:29]} 25. Rxf4 {[%emt 0:00:25]} Nc6 {[%emt 0:01:08]} 26. Rf5 {[%emt 0:02:13]} 1-0

[Event "Chess sin Fronteras-IM 2025"]
[Site "San Jose"]
[Date "2025.02.14"]
[Round "1.3"]
[White "Sivakumar, Shaaketh"]
[Black "Yan, Nathan"]
[Result "1-0"]
[Annotator "RC"]
[ECO "E05"]
[WhiteElo "2289"]
[BlackElo "2152"]
[PlyCount "111"]
[EventDate "2025.02.13"]
[EventType "tourn"]
[EventCountry "USA"]
[SourceTitle "playchess.com"]
[Source "ChessBase"]
[SourceQuality "1"]
[TimeControl "5400+30"]

1. c4 {[%emt 0:00:02]} e6 {[%emt 0:07:30]} 2. g3 {[%emt 0:00:09]} Nf6 {[%emt 0:00:34]} 3. Nf3 {[%emt 0:00:07]} d5 {[%emt 0:00:25]} 4. Bg2 {[%emt 0:00:08]} Be7 {[%emt 0:00:06]} 5. O-O {[%emt 0:00:07]} O-O {[%emt 0:00:04]} 6. d4 {[%emt 0:00:11]} dxc4 {[%emt 0:00:13]} 7. Qa4 {[%emt 0:00:47]} a6 {[%emt 0:00:20]} 8. Qxc4 {[%emt 0:00:11]} b5 {[%emt 0:00:13]} 9. Qc2 {[%emt 0:00:44]} Bb7 {[%emt 0:00:28]} 10. Bg5 {[%emt 0:01:18]} Nbd7 {[%emt 0:00:44]} 11. Nc3 {[%emt 0:01:37]} h6 {[%emt 0:02:03]} 12. Bxf6 {[%emt 0:01:20]} Nxf6 {[%emt 0:03:39]} 13. Rfd1 {[%emt 0:00:12]} b4 {[%emt 0:06:30]} 14. Na4 {[%emt 0:01:35]} Be4 {[%emt 0:00:41]} 15. Qc1 {[%emt 0:00:46]} Bd5 {[%emt 0:02:59]} 16. Ne5 {[%emt 0:02:15]} Bxg2 {[%emt 0:03:52]} 17. Kxg2 {[%emt 0:00:24]} Qd5+ {[%emt 0:00:46]} 18. f3 {[%emt 0:06:26]} Qb5 {[%emt 0:01:44]} 19. Qc2 {[%emt 0:00:27]} Nd5 {[%emt 0:08:51]} 20. Rd3 {[%emt 0:01:02]} Bd6 {[%emt 0:07:55]} 21. Nc4 {[%emt 0:01:21]} f5 {[%emt 0:08:20]} 22. e3 {[%emt 0:06:44]} Rad8 {[%emt 0:04:01]} 23. Re1 {[%emt 0:00:48]} Nf6 {[%emt 0:01:32]} 24. b3 {[%emt 0:00:58]} Qd5 {[%emt 0:06:23]} 25. Nd2 {[%emt 0:01:21]} Qb7 {[%emt 0:03:09]} 26. Rc1 {[%emt 0:01:39]} Qb5 {[%emt 0:13:08]} 27. Qc4 {[%emt 0:00:24]} Kh8 {[%emt 0:01:04]} 28. Nc5 {[%emt 0:03:51]} Bxc5 {[%emt 0:01:11]} 29. Qxb5 {[%emt 0:00:03]} axb5 {[%emt 0:00:01]} 30. Rxc5 {[%emt 0:00:19]} Ra8 {[%emt 0:00:31]} 31. Rc2 {[%emt 0:01:22]} Rfd8 {[%emt 0:01:58]} 32. e4 {[%emt 0:04:57]} Ra7 {[%emt 0:05:12]} 33. Kf1 {[%emt 0:03:25]} fxe4 {[%emt 0:02:40]} 34. fxe4 {[%emt 0:01:46]} Ng4 {[%emt 0:00:48]} 35. Ke2 {[%emt 0:01:07]} Nf6 {[%emt 0:08:25]} 36. h3 {[%emt 0:01:02]} Rda8 {[%emt 0:00:00]} 37. Ke3 {[%emt 0:00:23]} Rxa2 {[%emt 0:00:00]} 38. Rxc7 {[%emt 0:00:18]} Ra1 {[%emt 0:00:00]} 39. Rc6 {[%emt 0:02:30]} Re8 {[%emt 0:00:00]} 40. g4 {[%emt 0:03:30]} Rh1 {[%emt 0:00:31]} 41. Kf4 {[%emt 0:01:54]} Nd7 {[%emt 0:00:38]} 42. Kg3 {[%emt 0:02:05]} Rd1 {[%emt 0:00:25]} 43. Kf2 {[%emt 0:00:25]} Nf6 {[%emt 0:00:29]} 44. Ke2 {[%emt 0:00:16]} Rh1 {[%emt 0:00:06]} 45. Re3 {[%emt 0:00:46]} Rh2+ {[%emt 0:00:37]} 46. Kd3 {[%emt 0:00:11]} Nh7 {[%emt 0:01:03]} 47. d5 {[%emt 0:02:45]} exd5 {[%emt 0:01:02]} 48. exd5 {[%emt 0:00:02]} Rxe3+ {[%emt 0:00:01]} 49. Kxe3 {[%emt 0:00:01]} Rxh3+ {[%emt 0:00:02]} 50. Kd4 {[%emt 0:01:03]} Nf6 {[%emt 0:00:19]} 51. Rxf6 {[%emt 0:01:53]} gxf6 {[%emt 0:00:44]} 52. d6 {[%emt 0:00:02]} Rg3 {[%emt 0:00:29]} 53. d7 {[%emt 0:01:21]} Rxg4+ {[%emt 0:00:01]} 54. Ne4 {[%emt 0:00:02]} Rg8 {[%emt 0:00:02]} 55. Nd6 {[%emt 0:00:03]} Kh7 {[%emt 0:02:33]} 56. Ne8 {[%emt 0:01:03]} 1-0

[Event "Chess sin Fronteras-IM 2025"]
[Site "San Jose"]
[Date "2025.02.14"]
[Round "1.4"]
[White "Sivakumar, Shaashwath"]
[Black "Perdomo, Leandro"]
[Result "0-1"]
[Annotator "RC"]
[ECO "C54"]
[WhiteElo "2273"]
[BlackElo "2364"]
[PlyCount "78"]
[EventDate "2025.02.13"]
[EventType "tourn"]
[EventCountry "USA"]
[SourceTitle "playchess.com"]
[Source "ChessBase"]
[SourceQuality "1"]
[TimeControl "5400+30"]

1. e4 {[%emt 0:00:02]} e5 {[%emt 0:00:04]} 2. Nf3 {[%emt 0:00:08]} Nc6 {[%emt 0:00:02]} 3. Bc4 {[%emt 0:00:06]} Nf6 {[%emt 0:00:05]} 4. d3 {[%emt 0:00:03]} Bc5 {[%emt 0:00:30]} 5. O-O {[%emt 0:00:09]} d6 {[%emt 0:00:06]} 6. c3 {[%emt 0:00:05]} a5 {[%emt 0:00:39]} 7. Re1 {[%emt 0:00:13]} Ba7 {[%emt 0:00:57]} 8. Nbd2 {[%emt 0:01:04]} O-O {[%emt 0:01:40]} 9. Nf1 {[%emt 0:05:29]} Be6 {[%emt 0:02:40]} 10. Bb5 {[%emt 0:00:20]} Ne7 {[%emt 0:00:42]} 11. Ng3 {[%emt 0:06:08]} c6 {[%emt 0:02:52]} 12. Ba4 {[%emt 0:00:11]} Ng6 {[%emt 0:00:07]} 13. d4 {[%emt 0:02:22]} exd4 {[%emt 0:20:37]} 14. Nxd4 {[%emt 0:01:18]} d5 {[%emt 0:01:52]} 15. exd5 {[%emt 1:20:22]} Bxd5 {[%emt 0:25:34]} 16. Ngf5 {[%emt 0:00:00]} Re8 {[%emt 0:15:09]} 17. Be3 {[%emt 0:00:00]} Qc7 {[%emt 0:05:15]} 18. g3 {[%emt 0:00:00]} Qd7 {[%emt 0:07:33]} 19. Bc2 {[%emt 0:00:00]} Re5 {[%emt 0:02:07]} 20. Bg5 {[%emt 0:00:00]} Bxd4 {[%emt 0:01:08]} 21. Qxd4 {[%emt 0:00:00]} Rxf5 {[%emt 0:00:31]} 22. f4 {[%emt 0:00:00]} h6 {[%emt 0:04:22]} 23. Bxf5 {[%emt 0:00:00]} Qxf5 {[%emt 0:00:01]} 24. Bxf6 {[%emt 0:00:00]} Qc2 {[%emt 0:01:01]} 25. Qf2 {[%emt 0:00:00]} Qxf2+ {[%emt 0:00:02]} 26. Kxf2 {[%emt 0:00:00]} gxf6 {[%emt 0:00:02]} 27. b3 {[%emt 0:00:00]} b5 {[%emt 0:01:49]} 28. Ke3 {[%emt 0:00:00]} a4 {[%emt 0:01:17]} 29. Kd4 {[%emt 0:00:00]} axb3 {[%emt 0:00:37]} 30. axb3 {[%emt 0:00:00]} Rxa1 {[%emt 0:00:33]} 31. Rxa1 {[%emt 0:00:00]} Bxb3 {[%emt 0:00:02]} 32. Kc5 {[%emt 0:00:00]} Bd5 {[%emt 0:00:09]} 33. Kd6 {[%emt 0:00:00]} Kg7 {[%emt 0:01:53]} 34. Re1 {[%emt 0:00:00]} f5 {[%emt 0:00:56]} 35. Re8 {[%emt 0:00:00]} h5 {[%emt 0:00:50]} 36. h4 {[%emt 0:00:00]} Nf8 {[%emt 0:02:04]} 37. Rc8 {[%emt 0:00:00]} Nh7 {[%emt 0:01:47]} 38. Ke5 {[%emt 0:00:00]} Nf6 {[%emt 0:00:25]} 39. Kxf5 {[%emt 0:00:00]} Be6+ {[%emt 0:00:01]} 0-1

[Event "Chess sin Fronteras-IM 2025"]
[Site "San Jose"]
[Date "2025.02.14"]
[Round "1.5"]
[White "Liu, Patrick"]
[Black "Jimenez Garcia, Emmanuel"]
[Result "0-1"]
[Annotator "RC"]
[ECO "C41"]
[WhiteElo "2159"]
[BlackElo "2364"]
[PlyCount "170"]
[EventDate "2025.02.13"]
[EventType "tourn"]
[EventCountry "USA"]
[SourceTitle "playchess.com"]
[Source "ChessBase"]
[SourceQuality "1"]
[TimeControl "5400+30"]

1. e4 {[%emt 0:00:02]} d6 {[%emt 0:01:55]} 2. d4 {[%emt 0:00:08]} Nf6 {[%emt 0:00:06]} 3. Nc3 {[%emt 0:00:08]} e5 {[%emt 0:00:12]} 4. Nf3 {[%emt 0:00:13]} Nbd7 {[%emt 0:00:08]} 5. Bc4 {[%emt 0:00:10]} Be7 {[%emt 0:00:10]} 6. O-O {[%emt 0:00:15]} O-O {[%emt 0:00:18]} 7. a4 {[%emt 0:00:24]} a6 {[%emt 0:02:15]} 8. h3 {[%emt 0:01:05]} b6 {[%emt 0:01:47]} 9. Re1 {[%emt 0:01:42]} Bb7 {[%emt 0:03:54]} 10. b3 {[%emt 0:11:31]} c6 {[%emt 0:03:20]} 11. Bb2 {[%emt 0:02:23]} Qc7 {[%emt 0:04:13]} 12. Bd3 {[%emt 0:02:44]} Rfe8 {[%emt 0:01:56]} 13. Ne2 {[%emt 0:03:35]} Bf8 {[%emt 0:01:20]} 14. Ng3 {[%emt 0:02:17]} g6 {[%emt 0:03:23]} 15. Qd2 {[%emt 0:12:06]} Bg7 {[%emt 0:02:40]} 16. c4 {[%emt 0:04:23]} Rad8 {[%emt 0:25:21]} 17. Rac1 {[%emt 0:05:08]} exd4 {[%emt 0:07:01]} 18. Nxd4 {[%emt 0:01:58]} Ne5 {[%emt 0:00:07]} 19. Bb1 {[%emt 0:04:11]} c5 {[%emt 0:06:37]} 20. Nc2 {[%emt 0:14:03]} Nc6 {[%emt 0:07:18]} 21. Rcd1 {[%emt 0:08:06]} Na5 {[%emt 0:04:45]} 22. Qd3 {[%emt 0:04:18]} Nc6 {[%emt 0:06:05]} 23. Bc3 {[%emt 0:01:37]} h5 {[%emt 0:01:29]} 24. Nf1 {[%emt 0:07:17]} Ne5 {[%emt 0:00:49]} 25. Bxe5 {[%emt 0:05:15]} dxe5 {[%emt 0:00:51]} 26. Qe2 {[%emt 0:00:43]} Nxe4 {[%emt 0:00:48]} 27. Rxd8 {[%emt 0:01:04]} Rxd8 {[%emt 0:00:04]} 28. Nce3 {[%emt 0:00:19]} Nc3 {[%emt 0:00:45]} 29. Qc2 {[%emt 0:00:42]} e4 {[%emt 0:00:39]} 30. Ng3 {[%emt 0:01:02]} Bd4 {[%emt 0:10:07]} 31. Ne2 {[%emt 0:00:56]} Bxe3 {[%emt 0:00:52]} 32. fxe3 {[%emt 0:01:37]} Nxe2+ {[%emt 0:00:12]} 33. Qxe2 {[%emt 0:00:09]} Qd6 {[%emt 0:00:47]} 34. Qf2 {[%emt 0:00:21]} Qd2 {[%emt 0:00:27]} 35. Qg3 {[%emt 0:01:12]} Qd6 {[%emt 0:01:40]} 36. Qh4 {[%emt 0:00:25]} Re8 {[%emt 0:00:19]} 37. Rf1 {[%emt 0:00:07]} Qe5 {[%emt 0:00:20]} 38. Qf2 {[%emt 0:01:00]} Re7 {[%emt 0:00:24]} 39. Qd2 {[%emt 0:00:15]} Kg7 {[%emt 0:00:15]} 40. Qd8 {[%emt 0:00:23]} Qc7 {[%emt 0:00:34]} 41. Qd2 {[%emt 0:00:07]} a5 {[%emt 0:01:39]} 42. Kh1 {[%emt 0:00:11]} Re6 {[%emt 0:00:20]} 43. Qf2 {[%emt 0:01:44]} Bc6 {[%emt 0:00:22]} 44. Bc2 {[%emt 0:00:31]} Qe7 {[%emt 0:00:32]} 45. Qd2 {[%emt 0:00:21]} Qd6 {[%emt 0:00:23]} 46. Qc3+ {[%emt 0:00:56]} Qe5 {[%emt 0:00:19]} 47. Qd2 {[%emt 0:00:27]} Rd6 {[%emt 0:00:09]} 48. Qe2 {[%emt 0:00:05]} Rf6 {[%emt 0:01:18]} 49. Rxf6 {[%emt 0:01:57]} Qxf6 {[%emt 0:00:01]} 50. Qd2 {[%emt 0:00:38]} Kf8 {[%emt 0:00:49]} 51. Kg1 {[%emt 0:00:27]} Ke7 {[%emt 0:00:07]} 52. Qd1 {[%emt 0:01:46]} Qc3 {[%emt 0:01:38]} 53. Qe2 {[%emt 0:00:16]} h4 {[%emt 0:01:45]} 54. Qf2 {[%emt 0:00:41]} Qa1+ {[%emt 0:00:08]} 55. Kh2 {[%emt 0:00:02]} Qe5+ {[%emt 0:00:16]} 56. Kg1 {[%emt 0:00:11]} g5 {[%emt 0:00:36]} 57. Qe2 {[%emt 0:00:22]} Bd7 {[%emt 0:00:33]} 58. Qh5 {[%emt 0:00:54]} Qg3 {[%emt 0:02:22]} 59. Qe2 {[%emt 0:00:26]} Bxh3 {[%emt 0:00:00]} 60. Bxe4 {[%emt 0:00:03]} Be6 {[%emt 0:00:00]} 61. Bd5 {[%emt 0:01:35]} h3 {[%emt 0:00:00]} 62. Bb7 {[%emt 0:01:03]} g4 {[%emt 0:00:37]} 63. Qd2 {[%emt 0:00:32]} Qe5 {[%emt 0:00:34]} 64. gxh3 {[%emt 0:00:23]} Qg3+ {[%emt 0:00:07]} 65. Kh1 {[%emt 0:00:57]} Qxh3+ {[%emt 0:00:07]} 66. Kg1 {[%emt 0:00:20]} Qg3+ {[%emt 0:00:14]} 67. Bg2 {[%emt 0:00:30]} Qe5 {[%emt 0:00:31]} 68. Qd3 {[%emt 0:00:17]} Bf5 {[%emt 0:00:20]} 69. Qd2 {[%emt 0:01:08]} g3 {[%emt 0:00:55]} 70. Bf1 {[%emt 0:00:19]} Be4 {[%emt 0:00:22]} 71. Qe1 {[%emt 0:00:21]} f5 {[%emt 0:01:52]} 72. Bh3 {[%emt 0:00:26]} Qd6 {[%emt 0:00:45]} 73. Bg2 {[%emt 0:00:33]} Bc2 {[%emt 0:00:32]} 74. Qc3 {[%emt 0:00:24]} Qd1+ {[%emt 0:00:01]} 75. Bf1 {[%emt 0:00:01]} Kf7 {[%emt 0:00:59]} 76. Qe5 {[%emt 0:00:01]} Be4 {[%emt 0:00:22]} 77. Qc7+ Ke6 {[%emt 0:01:12]} 78. Qxb6+ {[%emt 0:00:54]} Qd6 {[%emt 0:00:00]} 79. Qxa5 {[%emt 0:00:30]} f4 {[%emt 0:00:00]} 80. Bh3+ {[%emt 0:00:30]} Bf5 {[%emt 0:00:20]} 81. Bxf5+ {[%emt 0:00:30]} Kxf5 {[%emt 0:00:30]} 82. exf4 {[%emt 0:00:30]} Qd1+ {[%emt 0:00:30]} 83. Kg2 {[%emt 0:00:30]} Kg4 {[%emt 0:00:30]} 84. Qxc5 {[%emt 0:00:30]} Qe2+ {[%emt 0:00:30]} 85. Kg1 {[%emt 0:00:30]} Qh2+ {[%emt 0:00:30]} 0-1

[Event "Chess sin Fronteras-IM 2025"]
[Site "San Jose"]
[Date "2025.02.14"]
[Round "2.1"]
[White "Martinez Romero, Martin"]
[Black "Jimenez Garcia, Emmanuel"]
[Result "1/2-1/2"]
[Annotator "RC"]
[ECO "B22"]
[WhiteElo "2393"]
[BlackElo "2364"]
[PlyCount "40"]
[EventDate "2025.02.13"]
[EventType "tourn"]
[EventCountry "USA"]
[SourceTitle "playchess.com"]
[Source "ChessBase"]
[SourceQuality "1"]
[TimeControl "5400+30"]

1. e4 {[%emt 0:02:53]} c5 {[%emt 0:00:20]} 2. c3 {[%emt 0:00:44]} Nf6 {[%emt 0:04:39]} 3. e5 {[%emt 0:00:09]} Nd5 {[%emt 0:00:02]} 4. d4 {[%emt 0:00:05]} cxd4 {[%emt 0:00:23]} 5. Nf3 {[%emt 0:00:05]} Nc6 {[%emt 0:05:19]} 6. Bc4 {[%emt 0:00:29]} Nb6 {[%emt 0:01:25]} 7. Bb3 {[%emt 0:00:04]} d5 {[%emt 0:00:50]} 8. exd6 {[%emt 0:00:04]} Bf5 {[%emt 0:09:06]} 9. Nxd4 {[%emt 0:01:11]} Nxd4 {[%emt 0:00:54]} 10. Qxd4 {[%emt 0:00:08]} Qxd6 {[%emt 0:00:26]} 11. Qxd6 {[%emt 0:00:16]} exd6 {[%emt 0:00:02]} 12. O-O {[%emt 0:00:48]} Be6 {[%emt 0:06:22]} 13. Na3 {[%emt 0:02:02]} Kd7 {[%emt 0:01:58]} 14. Rd1 {[%emt 0:00:45]} Be7 {[%emt 0:06:26]} 15. Be3 {[%emt 0:01:25]} Rhc8 {[%emt 0:05:47]} 16. Rd4 {[%emt 0:01:15]} d5 {[%emt 0:02:43]} 17. Nc2 {[%emt 0:06:11]} Nc4 {[%emt 0:09:45]} 18. Bc1 {[%emt 0:02:01]} Ke8 {[%emt 0:01:56]} 19. Ne3 {[%emt 0:01:01]} Rd8 {[%emt 0:01:37]} 20. Nxc4 {[%emt 0:01:25]} dxc4 {[%emt 0:00:42]} 1/2-1/2

[Event "Chess sin Fronteras-IM 2025"]
[Site "San Jose"]
[Date "2025.02.14"]
[Round "2.2"]
[White "Perdomo, Leandro"]
[Black "Liu, Patrick"]
[Result "1/2-1/2"]
[Annotator "RC"]
[ECO "E59"]
[WhiteElo "2364"]
[BlackElo "2159"]
[PlyCount "54"]
[EventDate "2025.02.13"]
[EventType "tourn"]
[EventCountry "USA"]
[SourceTitle "playchess.com"]
[Source "ChessBase"]
[SourceQuality "1"]
[TimeControl "5400+30"]

1. d4 {[%emt 0:00:02]} Nf6 {[%emt 0:00:02]} 2. c4 {[%emt 0:00:14]} e6 {[%emt 0:00:12]} 3. Nc3 {[%emt 0:00:16]} Bb4 {[%emt 0:00:14]} 4. e3 {[%emt 0:00:04]} O-O {[%emt 0:00:26]} 5. Bd3 {[%emt 0:00:05]} d5 {[%emt 0:00:26]} 6. a3 {[%emt 0:00:48]} Bxc3+ {[%emt 0:00:44]} 7. bxc3 {[%emt 0:00:02]} dxc4 {[%emt 0:00:25]} 8. Bxc4 {[%emt 0:00:02]} c5 {[%emt 0:00:05]} 9. Nf3 {[%emt 0:00:54]} Qc7 {[%emt 0:00:05]} 10. Be2 {[%emt 0:03:39]} Nc6 {[%emt 0:00:19]} 11. O-O {[%emt 0:01:58]} Rd8 {[%emt 0:00:18]} 12. c4 {[%emt 0:23:02]} b6 {[%emt 0:03:26]} 13. Bb2 {[%emt 0:01:51]} Na5 {[%emt 0:04:44]} 14. Qc2 {[%emt 0:14:11]} cxd4 {[%emt 0:04:00]} 15. Bxd4 {[%emt 0:06:53]} Ba6 {[%emt 0:04:25]} 16. Rac1 {[%emt 0:18:20]} Nd7 {[%emt 0:05:04]} 17. Qb2 {[%emt 0:09:49]} f6 {[%emt 0:04:19]} 18. c5 {[%emt 0:00:03]} Bxe2 {[%emt 0:02:46]} 19. cxb6 {[%emt 0:00:02]} Qd6 {[%emt 0:00:17]} 20. Qxe2 {[%emt 0:00:15]} axb6 {[%emt 0:00:18]} 21. Qa2 {[%emt 0:03:09]} Nc5 {[%emt 0:04:17]} 22. Nd2 {[%emt 0:03:44]} Qd5 {[%emt 0:02:02]} 23. Rc2 {[%emt 0:08:49]} e5 {[%emt 0:04:34]} 24. Bc3 {[%emt 0:00:12]} Qxa2 {[%emt 0:04:19]} 25. Rxa2 {[%emt 0:00:01]} Rd3 {[%emt 0:00:23]} 26. Bb4 {[%emt 0:04:01]} Rad8 {[%emt 0:04:47]} 27. Rc2 {[%emt 0:00:43]} Nc6 {[%emt 0:03:45]} 1/2-1/2

[Event "Chess sin Fronteras-IM 2025"]
[Site "San Jose"]
[Date "2025.02.14"]
[Round "2.3"]
[White "Yan, Nathan"]
[Black "Sivakumar, Shaashwath"]
[Result "1-0"]
[Annotator "RC"]
[ECO "B80"]
[WhiteElo "2152"]
[BlackElo "2273"]
[PlyCount "143"]
[EventDate "2025.02.13"]
[EventType "tourn"]
[EventCountry "USA"]
[SourceTitle "playchess.com"]
[Source "ChessBase"]
[SourceQuality "1"]
[TimeControl "5400+30"]

1. e4 {[%emt 0:06:48]} c5 {[%emt 0:00:06]} 2. Nf3 {[%emt 0:00:11]} d6 {[%emt 0:00:06]} 3. d4 {[%emt 0:00:19]} cxd4 {[%emt 0:00:05]} 4. Nxd4 {[%emt 0:00:24]} Nf6 {[%emt 0:00:06]} 5. Nc3 {[%emt 0:00:01]} a6 {[%emt 0:00:07]} 6. Be3 {[%emt 0:00:53]} e6 {[%emt 0:00:10]} 7. f3 {[%emt 0:00:31]} h5 {[%emt 0:00:22]} 8. Qd2 {[%emt 0:00:09]} b5 {[%emt 0:01:57]} 9. a3 {[%emt 0:04:36]} Be7 {[%emt 0:01:54]} 10. Be2 {[%emt 0:01:57]} Bb7 {[%emt 0:00:26]} 11. O-O-O {[%emt 0:04:07]} Nbd7 {[%emt 0:00:27]} 12. h3 {[%emt 0:01:32]} h4 {[%emt 0:00:26]} 13. Kb1 {[%emt 0:01:22]} Rc8 {[%emt 0:07:41]} 14. Rhe1 {[%emt 0:01:01]} Nh5 {[%emt 0:02:19]} 15. f4 {[%emt 0:02:04]} Ng3 {[%emt 0:01:08]} 16. Bd3 {[%emt 0:07:38]} Nc5 {[%emt 0:17:14]} 17. Bf2 {[%emt 0:01:34]} Qb6 {[%emt 0:07:13]} 18. Nde2 {[%emt 0:17:19]} Nxe2 {[%emt 0:02:51]} 19. Bxe2 {[%emt 0:06:54]} Qc7 {[%emt 0:05:45]} 20. Bf3 {[%emt 0:03:31]} Nd7 {[%emt 0:00:33]} 21. Bd4 {[%emt 0:09:22]} O-O {[%emt 0:04:50]} 22. e5 {[%emt 0:03:16]} dxe5 {[%emt 0:01:23]} 23. fxe5 {[%emt 0:01:14]} Rfd8 {[%emt 0:07:27]} 24. Qf2 {[%emt 0:00:47]} Rb8 {[%emt 0:00:47]} 25. Bxb7 {[%emt 0:02:21]} Rxb7 {[%emt 0:04:26]} 26. Rf1 {[%emt 0:02:10]} Rf8 {[%emt 0:00:34]} 27. Qf4 {[%emt 0:03:38]} b4 {[%emt 0:01:20]} 28. axb4 {[%emt 0:00:08]} Rxb4 {[%emt 0:02:06]} 29. Ne4 {[%emt 0:00:46]} Nb6 {[%emt 0:00:48]} 30. Nf6+ {[%emt 0:03:41]} Bxf6 {[%emt 0:00:11]} 31. exf6 {[%emt 0:00:01]} Qxf4 {[%emt 0:01:40]} 32. Rxf4 {[%emt 0:00:03]} Nd5 {[%emt 0:01:36]} 33. fxg7 {[%emt 0:03:15]} Rd8 {[%emt 0:00:21]} 34. Rff1 {[%emt 0:01:41]} Rc8 {[%emt 0:04:24]} 35. Rf3 {[%emt 0:02:10]} Rcc4 {[%emt 0:04:03]} 36. c3 {[%emt 0:00:58]} Rb5 {[%emt 0:00:29]} 37. Rdf1 {[%emt 0:02:30]} Rb7 {[%emt 0:01:01]} 38. g3 {[%emt 0:00:32]} a5 {[%emt 0:01:01]} 39. gxh4 {[%emt 0:00:41]} a4 {[%emt 0:00:04]} 40. h5 {[%emt 0:01:14]} a3 {[%emt 0:00:07]} 41. R1f2 {[%emt 0:00:07]} e5 {[%emt 0:01:30]} 42. Bxe5 {[%emt 0:00:47]} Re4 {[%emt 0:00:04]} 43. Bd4 {[%emt 0:01:22]} f6 {[%emt 0:01:47]} 44. h6 {[%emt 0:01:43]} Rb8 {[%emt 0:00:07]} 45. Rg3 {[%emt 0:01:18]} Nf4 {[%emt 0:04:45]} 46. h7+ {[%emt 0:01:40]} Kxh7 {[%emt 0:00:02]} 47. g8=Q+ {[%emt 0:00:02]} Rxg8 {[%emt 0:00:10]} 48. Rxg8 {[%emt 0:00:01]} Kxg8 {[%emt 0:00:12]} 49. bxa3 {[%emt 0:00:08]} Kf7 {[%emt 0:00:43]} 50. a4 {[%emt 0:00:23]} Nd5 {[%emt 0:01:10]} 51. Kc2 {[%emt 0:00:46]} Re6 {[%emt 0:00:08]} 52. Kb3 {[%emt 0:00:49]} Kg6 {[%emt 0:01:20]} 53. Kc4 {[%emt 0:00:32]} Nc7 {[%emt 0:00:17]} 54. a5 {[%emt 0:00:25]} f5 {[%emt 0:00:08]} 55. Bb6 {[%emt 0:00:18]} Rc6+ {[%emt 0:00:05]} 56. Kb3 {[%emt 0:00:32]} Nd5 {[%emt 0:00:04]} 57. Bd4 {[%emt 0:00:25]} Kg5 {[%emt 0:00:21]} 58. c4 {[%emt 0:00:41]} Nc7 {[%emt 0:00:03]} 59. Be3+ {[%emt 0:01:07]} Kf6 {[%emt 0:00:11]} 60. h4 {[%emt 0:00:43]} Ne6 {[%emt 0:00:06]} 61. Kb4 {[%emt 0:00:22]} Ke5 {[%emt 0:00:08]} 62. Kb5 {[%emt 0:00:17]} Rc8 {[%emt 0:00:01]} 63. Bb6 {[%emt 0:00:18]} f4 {[%emt 0:00:32]} 64. a6 {[%emt 0:00:28]} Nf8 {[%emt 0:00:19]} 65. a7 {[%emt 0:00:24]} Nd7 {[%emt 0:00:06]} 66. c5 {[%emt 0:00:11]} Ke4 {[%emt 0:00:24]} 67. Ka6 {[%emt 0:00:40]} Ke3 {[%emt 0:00:12]} 68. Rb2 {[%emt 0:00:33]} f3 {[%emt 0:00:17]} 69. c6+ {[%emt 0:00:10]} Nxb6 {[%emt 0:00:05]} 70. Kxb6 {[%emt 0:00:02]} f2 {[%emt 0:00:07]} 71. Rxf2 {[%emt 0:00:02]} Kxf2 {[%emt 0:00:05]} 72. Kb7 {[%emt 0:00:01]} 1-0

[Event "Chess sin Fronteras-IM 2025"]
[Site "San Jose"]
[Date "2025.02.14"]
[Round "2.4"]
[White "Paredes Lagos, Anthony Javier"]
[Black "Sivakumar, Shaaketh"]
[Result "1-0"]
[Annotator "RC"]
[ECO "A80"]
[WhiteElo "2338"]
[BlackElo "2289"]
[PlyCount "61"]
[EventDate "2025.02.13"]
[EventType "tourn"]
[EventCountry "USA"]
[SourceTitle "playchess.com"]
[Source "ChessBase"]
[SourceQuality "1"]
[TimeControl "5400+30"]

1. d4 {[%emt 0:00:06]} e6 {[%emt 0:02:28]} 2. Nf3 {[%emt 0:00:42]} f5 {[%emt 0:00:29]} 3. Bf4 {[%emt 0:00:34]} Nf6 {[%emt 0:00:17]} 4. e3 {[%emt 0:00:04]} Bd6 {[%emt 0:00:42]} 5. Nc3 {[%emt 0:01:35]} O-O {[%emt 0:00:29]} 6. Bg5 {[%emt 0:08:17]} Be7 {[%emt 0:02:35]} 7. Bxf6 {[%emt 0:08:07]} Bxf6 {[%emt 0:00:19]} 8. e4 {[%emt 0:00:06]} d5 {[%emt 0:02:03]} 9. exd5 {[%emt 0:07:28]} exd5 {[%emt 0:00:12]} 10. Qd2 {[%emt 0:01:14]} c6 {[%emt 0:01:54]} 11. O-O-O {[%emt 0:02:08]} b5 {[%emt 0:04:22]} 12. Bd3 {[%emt 0:00:12]} Na6 {[%emt 0:00:48]} 13. Kb1 {[%emt 0:01:54]} Nb4 {[%emt 0:00:46]} 14. Bf1 {[%emt 0:07:52]} a5 {[%emt 0:05:07]} 15. Ne2 {[%emt 0:00:43]} Be6 {[%emt 0:10:12]} 16. h4 {[%emt 0:07:58]} Qd6 {[%emt 0:05:17]} 17. Nf4 {[%emt 0:08:49]} Rfd8 {[%emt 0:08:42]} 18. c3 {[%emt 0:06:39]} Na6 {[%emt 0:00:23]} 19. Nxe6 {[%emt 0:00:18]} Qxe6 {[%emt 0:00:02]} 20. Re1 {[%emt 0:01:21]} Qd7 {[%emt 0:06:17]} 21. Bd3 {[%emt 0:01:22]} b4 {[%emt 0:03:31]} 22. Ne5 {[%emt 0:03:17]} Qc8 {[%emt 0:02:26]} 23. Qc2 {[%emt 0:02:27]} g6 {[%emt 0:02:49]} 24. h5 {[%emt 0:02:28]} Bxe5 {[%emt 0:05:52]} 25. Rxe5 {[%emt 0:00:10]} Re8 {[%emt 0:00:14]} 26. hxg6 {[%emt 0:00:22]} hxg6 {[%emt 0:00:07]} 27. Qe2 {[%emt 0:00:15]} Nc7 {[%emt 0:00:19]} 28. Re7 {[%emt 0:01:07]} Qd8 {[%emt 0:01:31]} 29. Rh8+ {[%emt 0:00:11]} Kxh8 {[%emt 0:00:10]} 30. Qe5+ {[%emt 0:00:02]} Kg8 {[%emt 0:00:08]} 31. Qg7# 1-0